fUST/lending_fUST_20251216
["ID","MTS","AMOUNT","RATE_DAILY","PERIOD"]
[398584278,1765857055409,-500.0,0.00011232,2]
[398584279,1765857055418,-500.0,0.00011232,2]
[398584280,1765857055428,-1225.41,0.00011232,2]
[398584281,1765857055438,-500.0,0.00011232,2]
[398584282,1765857055447,-500.0,0.00011232,2]
[398584283,1765857055456,-500.0,0.00011232,2]
[398584284,1765857055465,-500.0,0.00011232,2]
[398584285,1765857055474,-6779.98,0.00011232,2]
[398584286,1765857055483,-500.0,0.00011232,2]
[398584287,1765857055493,-500.0,0.00011232,2]
[398584288,1765857055502,-500.0,0.00011232,2]
[398584289,1765857055512,-500.0,0.00011232,2]
[398584290,1765857055521,-500.0,0.00011232,2]
[398584291,1765857055531,-500.0,0.00011232,2]
[398584292,1765857055541,-500.0,0.00011232,2]
[398584293,1765857055550,-500.0,0.00011232,2]
[398584294,1765857055562,-879.62,0.00011232,2]
[398584295,1765857055572,-849.34,0.00011232,2]
[398584296,1765857055581,-500.0,0.00011232,2]
[398584297,1765857055591,-4220.16,0.00011232,2]
[398584298,1765857055601,-500.0,0.00011232,2]
[398584299,1765857055611,-500.0,0.00011232,2]
[398584300,1765857055622,-500.0,0.00011232,2]
[398584301,1765857055632,-500.0,0.00011232,2]
[398584302,1765857055642,-500.0,0.00011232,2]
[398584303,1765857055652,-2541.48,0.00011232,2]
[398584304,1765857055662,-500.0,0.00011232,2]
[398584305,1765857055671,-618.0,0.00011232,2]
[398584306,1765857055681,-1330.94,0.00011232,2]
[398584307,1765857055690,-502.75,0.00011232,2]
[398584308,1765857055699,-500.0,0.00011232,2]
[398584309,1765857055709,-500.0,0.00011232,2]
[398584310,1765857055719,-1721.89,0.00011232,2]
[398584311,1765857055728,-500.0,0.00011232,2]
[398584312,1765857055737,-1471.73,0.00011232,2]
[398584313,1765857055747,-1794.66,0.00011232,2]
[398584314,1765857055757,-500.0,0.00011232,2]
[398584315,1765857055767,-500.0,0.00011232,2]
[398584316,1765857055776,-1436.2,0.00011232,2]
[398584317,1765857055785,-919.0,0.00011232,2]
[398584318,1765857055795,-1483.78,0.00011232,2]
[398584319,1765857055804,-500.0,0.00011232,2]
[398584320,1765857055814,-9283.55,0.00011232,2]
[398584321,1765857055824,-1109.0,0.00011232,2]
[398584322,1765857055834,-500.0,0.00011232,2]
[398584323,1765857055843,-930.78,0.00011232,2]
[398584324,1765857055852,-700.85,0.00011232,2]
[398584325,1765857055862,-500.0,0.00011232,2]
[398584326,1765857055873,-500.0,0.00011232,2]
[398584327,1765857055883,-2453.55,0.00011232,2]
[398584328,1765857055893,-707.6,0.00011232,2]
[398584329,1765857055902,-536.25,0.00011232,2]
[398584330,1765857055912,-500.0,0.00011232,2]
[398584331,1765857055921,-500.0,0.00011232,2]
[398584332,1765857055932,-990.55,0.00011232,2]
[398584333,1765857055942,-500.0,0.00011232,2]
[398584334,1765857055952,-2349.49,0.00011232,2]
[398584335,1765857055960,-2196.03,0.00011232,2]
[398584336,1765857055970,-343.18338088,0.00011232,2]
[398584337,1765857055979,-500.0,0.00011232,2]
[398584338,1765857055989,-1420.86,0.00011232,2]
[398584339,1765857056000,-1354.29,0.00011232,2]
[398584340,1765857056010,-500.0,0.00011232,2]
[398584341,1765857056019,-1566.76,0.00011232,2]
[398584342,1765857056029,-500.0,0.00011232,2]
[398584343,1765857056038,-1789.22,0.00011232,2]
[398584344,1765857056048,-500.0,0.00011232,2]
[398584345,1765857056057,-975.67,0.00011232,2]
[398584346,1765857056067,-997.09,0.00011232,2]
[398584347,1765857056076,-1344.17,0.00011232,2]
[398584348,1765857056086,-600.75,0.00011232,2]
[398584349,1765857056095,-500.0,0.00011232,2]
[398584350,1765857056105,-500.0,0.00011232,2]
[398584351,1765857056114,-500.0,0.00011232,2]
[398584352,1765857056127,-4842.15,0.00011232,2]
[398584353,1765857056137,-938.39,0.00011232,2]
[398584354,1765857056146,-500.0,0.00011232,2]
[398584355,1765857056155,-513.63,0.00011232,2]
[398584356,1765857056165,-1372.69,0.00011232,2]
[398584357,1765857056174,-500.0,0.00011232,2]
[398584358,1765857056183,-500.0,0.00011232,2]
[398584359,1765857056193,-500.0,0.00011232,2]
[398584360,1765857056204,-1192.19,0.00011232,2]
[398584361,1765857056214,-576.29724893,0.00011232,2]
[398584362,1765857056223,-500.0,0.00011232,2]
[398584363,1765857056232,-2748.55,0.00011232,2]
[398584364,1765857056242,-825.5,0.00011232,2]
[398584365,1765857056251,-708.11,0.00011232,2]
[398584366,1765857056260,-2322.09,0.00011232,2]
[398584367,1765857056270,-2125.4,0.00011232,2]
[398584368,1765857056279,-500.0,0.00011232,2]
[398584369,1765857056288,-500.0,0.00011232,2]
[398584370,1765857056297,-500.0,0.00011232,2]
[398584371,1765857056305,-6830.61,0.00011232,2]
[398584372,1765857056314,-8377.94,0.00011232,2]
[398584373,1765857056323,-500.0,0.00011232,2]
[398584374,1765857056332,-2121.87,0.00011232,2]
[398584375,1765857056341,-500.0,0.00011232,2]
[398584376,1765857056351,-500.0,0.00011232,2]
[398584377,1765857056360,-858.84,0.00011232,2]
[398584378,1765857056370,-945.29,0.00011232,2]
[398584379,1765857056379,-1092.05,0.00011232,2]
[398584380,1765857056387,-580.26,0.00011232,2]
[398584381,1765857056396,-500.0,0.00011232,2]
[398584382,1765857056405,-500.0,0.00011232,2]
[398584383,1765857056414,-500.0,0.00011232,2]
[398584384,1765857056481,-500.0,0.00011232,2]
[398584385,1765857056491,-2445.72,0.00011232,2]
[398584386,1765857056501,-500.0,0.00011232,2]
[398584387,1765857056509,-3903.36,0.00011232,2]
[398584388,1765857056518,-537.08,0.00011232,2]
[398584389,1765857056527,-618.36,0.00011232,2]
[398584390,1765857056536,-500.0,0.00011232,2]
[398584391,1765857056545,-4243.55,0.00011232,2]
[398584392,1765857056555,-212.33385515,0.00011232,2]
[398584393,1765857056563,-500.0,0.00011232,2]
[398584394,1765857056572,-500.0,0.00011232,2]
[398584395,1765857056582,-1422.62,0.00011232,2]
[398584396,1765857056591,-800.38,0.00011232,2]
[398584397,1765857056600,-1202.09,0.00011232,2]
[398584398,1765857056609,-799.6,0.00011232,2]
[398584399,1765857056617,-520.25,0.00011232,2]
[398584400,1765857056626,-500.0,0.00011232,2]
[398584401,1765857056635,-14584.18,0.00011232,2]
[398584402,1765857056643,-500.0,0.00011232,2]
[398584403,1765857056652,-500.0,0.00011232,2]
[398584404,1765857056660,-2341.35,0.00011232,2]
[398584405,1765857056669,-500.0,0.00011232,2]
[398584406,1765857056677,-614.63,0.00011232,2]
[398584407,1765857056686,-500.0,0.00011232,2]
[398584408,1765857056694,-2042.99,0.00011232,2]
[398584409,1765857056703,-3921.7,0.00011232,2]
[398584410,1765857056712,-500.0,0.00011232,2]
[398584411,1765857056720,-2154.94,0.00011232,2]
[398584412,1765857056729,-1164.37,0.00011232,2]
[398584413,1765857056738,-1452.17,0.00011232,2]
[398584414,1765857056748,-290.04397436,0.00011232,2]
[398584415,1765857056757,-500.0,0.00011232,2]
[398584416,1765857056766,-940.07,0.00011232,2]
[398584417,1765857056774,-3354.89,0.00011232,2]
[398584418,1765857056783,-885.63,0.00011232,2]
[398584419,1765857056792,-500.0,0.00011232,2]
[398584420,1765857056801,-500.0,0.00011232,2]
[398584421,1765857056810,-583.17,0.00011232,2]
[398584422,1765857056819,-934.17,0.00011232,2]
[398584423,1765857056827,-500.0,0.00011232,2]
[398584424,1765857056836,-500.0,0.00011232,2]
[398584425,1765857056845,-2662.12,0.00011232,2]
[398584426,1765857056853,-1389.33,0.00011232,2]
[398584427,1765857056862,-2691.53,0.00011232,2]
[398584428,1765857056870,-500.0,0.00011232,2]
[398584429,1765857056879,-500.0,0.00011232,2]
[398584430,1765857056888,-500.0,0.00011232,2]
[398584431,1765857056896,-500.0,0.00011232,2]
[398584432,1765857056905,-947.29,0.00011232,2]
[398584433,1765857056914,-500.0,0.00011232,2]
[398584434,1765857056922,-500.0,0.00011232,2]
[398584435,1765857056931,-1434.18,0.00011232,2]
[398584436,1765857056940,-1332.18,0.00011232,2]
[398584437,1765857056949,-500.0,0.00011232,2]
[398584438,1765857056958,-607.29,0.00011232,2]
[398584439,1765857056968,-500.0,0.00011232,2]
[398584440,1765857056977,-500.0,0.00011232,2]
[398584441,1765857056986,-500.0,0.00011232,2]
[398584442,1765857056995,-500.0,0.00011232,2]
[398584443,1765857057004,-500.0,0.00011232,2]
[398584444,1765857057014,-500.0,0.00011232,2]
[398584445,1765857057023,-3493.92,0.00011232,2]
[398584446,1765857057032,-500.0,0.00011232,2]
[398584447,1765857057042,-500.0,0.00011232,2]
[398584448,1765857057051,-1734.78,0.00011232,2]
[398584449,1765857057060,-529.53,0.00011232,2]
[398584450,1765857057070,-500.0,0.00011232,2]
[398584451,1765857057079,-1497.62,0.00011232,2]
[398584452,1765857057087,-1890.34,0.00011232,2]
[398584453,1765857057096,-1724.14,0.00011232,2]
[398584454,1765857057105,-1321.15,0.00011232,2]
[398584455,1765857057115,-500.0,0.00011232,2]
[398584456,1765857057126,-500.0,0.00011232,2]
[398584457,1765857057136,-500.0,0.00011232,2]
[398584458,1765857057145,-627.84,0.00011232,2]
[398584459,1765857057154,-1136.33,0.00011232,2]
[398584460,1765857057164,-500.0,0.00011232,2]
[398584461,1765857057174,-500.0,0.00011232,2]
[398584462,1765857057183,-2584.7,0.00011232,2]
[398584463,1765857057192,-500.0,0.00011232,2]
[398584464,1765857057202,-500.0,0.00011232,2]
[398584465,1765857057212,-906.3,0.00011232,2]
[398584466,1765857057221,-523.47,0.00011232,2]
[398584467,1765857057230,-500.0,0.00011232,2]
[398584468,1765857057240,-500.0,0.00011232,2]
[398584469,1765857057249,-860.33,0.00011232,2]
[398584470,1765857057258,-500.0,0.00011232,2]
[398584471,1765857057267,-1103.9,0.00011232,2]
[398584472,1765857057276,-526.2,0.00011232,2]
[398584473,1765857057285,-500.0,0.00011232,2]
[398584474,1765857057295,-625.36,0.00011232,2]
[398584475,1765857057304,-500.0,0.00011232,2]
[398584476,1765857057313,-500.0,0.00011232,2]
[398584477,1765857057322,-500.0,0.00011232,2]
[398584478,1765857057331,-500.0,0.00011232,2]
[398584479,1765857057340,-500.0,0.00011232,2]
[398584480,1765857057348,-3387.17,0.00011232,2]
[398584481,1765857057357,-838.05,0.00011232,2]
[398584482,1765857057366,-500.0,0.00011232,2]
[398584483,1765857057375,-500.0,0.00011232,2]
[398584484,1765857057386,-717.42,0.00011232,2]
[398584485,1765857057395,-500.0,0.00011232,2]
[398584486,1765857057404,-11122.08,0.00011232,2]
[398584487,1765857057413,-1435.24,0.00011232,2]
[398584488,1765857057422,-500.0,0.00011232,2]
[398584489,1765857057433,-500.0,0.00011232,2]
[398584490,1765857057442,-645.68,0.00011232,2]
[398584491,1765857057451,-22080.53,0.00011232,2]
[398584492,1765857057460,-3719.53,0.00011232,2]
[398584493,1765857057469,-500.0,0.00011232,2]
[398584494,1765857057478,-835.99,0.00011232,2]
[398584495,1765857057487,-1808.12,0.00011232,2]
[398584496,1765857057498,-500.0,0.00011232,2]
[398584497,1765857057507,-500.0,0.00011232,2]
[398584498,1765857057516,-500.0,0.00011232,2]
[398584499,1765857057525,-8246.11,0.00011232,2]
[398584500,1765857057536,-1665.52,0.00011232,2]
[398584501,1765857057545,-500.0,0.00011232,2]
[398584502,1765857057554,-561.3145708,0.00011232,2]
[398584503,1765857057563,-500.0,0.00011232,2]
[398584504,1765857057572,-500.0,0.00011232,2]
[398584505,1765857057581,-505.05,0.00011232,2]
[398584506,1765857057590,-500.0,0.00011232,2]
[398584507,1765857057599,-500.0,0.00011232,2]
[398584508,1765857057608,-5019.38,0.00011232,2]
[398584509,1765857057617,-688.63,0.00011232,2]
[398584510,1765857057627,-980.38,0.00011232,2]
[398584511,1765857057636,-2863.98,0.00011232,2]
[398584512,1765857057645,-2333.27,0.00011232,2]
[398584513,1765857057654,-500.0,0.00011232,2]
[398584514,1765857057663,-500.0,0.00011232,2]
[398584515,1765857057672,-500.0,0.00011232,2]
[398584516,1765857057682,-884.98,0.00011232,2]
[398584517,1765857057692,-2011.13,0.00011232,2]
[398584518,1765857057702,-500.0,0.00011232,2]
[398584519,1765857057712,-561.14,0.00011232,2]
[398584520,1765857057721,-1161.7,0.00011232,2]
[398584521,1765857057730,-5555.9,0.00011232,2]
[398584522,1765857057739,-500.0,0.00011232,2]
[398584523,1765857057748,-1243.71,0.00011232,2]
[398584524,1765857057757,-35354.14,0.00011232,2]
[398584525,1765857057766,-500.0,0.00011232,2]
[398584526,1765857057775,-3963.15,0.00011232,2]
[398584527,1765857057784,-9588.87,0.00011232,2]
[398584528,1765857057793,-500.0,0.00011232,2]
[398584529,1765857057802,-1419.14,0.00011232,2]
[398584530,1765857057811,-500.0,0.00011232,2]
[398584531,1765857057820,-1172.55,0.00011232,2]
[398584532,1765857057830,-500.0,0.00011232,2]
[398584533,1765857057840,-500.0,0.00011232,2]
[398584534,1765857057849,-2089.03,0.00011232,2]
[398584535,1765857057858,-500.0,0.00011232,2]
[398584536,1765857057868,-2257.39,0.00011232,2]
[398584537,1765857057877,-1097.79,0.00011232,2]
[398584538,1765857057887,-1991.38,0.00011232,2]
[398584539,1765857057896,-841.22,0.00011232,2]
[398584540,1765857057905,-500.0,0.00011232,2]
[398584541,1765857057915,-500.0,0.00011232,2]
[398584542,1765857057924,-500.0,0.00011232,2]
[398584543,1765857057934,-500.0,0.00011232,2]
[398584544,1765857057944,-800.38,0.00011232,2]
[398584545,1765857057953,-500.0,0.00011232,2]
[398584546,1765857057963,-515.14710574,0.00011232,2]
[398584547,1765857057972,-1431.03,0.00011232,2]
[398584548,1765857057981,-500.0,0.00011232,2]
[398584549,1765857057991,-8351.41,0.00011232,2]
[398584550,1765857058001,-500.0,0.00011232,2]
[398584551,1765857058010,-1423.76,0.00011232,2]
[398584552,1765857058019,-896.79,0.00011232,2]
[398584553,1765857058029,-500.0,0.00011232,2]
[398584554,1765857058038,-1140.27,0.00011232,2]
[398584555,1765857058047,-4075.24,0.00011232,2]
[398584556,1765857058056,-500.0,0.00011232,2]
[398584557,1765857058066,-914.19,0.00011232,2]
[398584558,1765857058075,-500.0,0.00011232,2]
[398584559,1765857058085,-500.0,0.00011232,2]
[398584560,1765857058095,-3247.84,0.00011232,2]
[398584561,1765857058105,-1445.43,0.00011232,2]
[398584562,1765857058114,-500.0,0.00011232,2]
[398584563,1765857058125,-500.0,0.00011232,2]
[398584564,1765857058135,-940.6,0.00011232,2]
[398584565,1765857058145,-500.0,0.00011232,2]
[398584566,1765857058154,-500.0,0.00011232,2]
[398584567,1765857058163,-1956.75,0.00011232,2]
[398584568,1765857058174,-500.0,0.00011232,2]
[398584569,1765857058183,-500.0,0.00011232,2]
[398584570,1765857058193,-1069.42,0.00011232,2]
[398584571,1765857058203,-2026.56,0.00011232,2]
[398584572,1765857058213,-1628.96,0.00011232,2]
[398584573,1765857058222,-1842.29,0.00011232,2]
[398584574,1765857058232,-1954.46,0.00011232,2]
[398584575,1765857058241,-500.0,0.00011232,2]
[398584576,1765857058251,-500.0,0.00011232,2]
[398584577,1765857058260,-500.0,0.00011232,2]
[398584578,1765857058270,-1249.58,0.00011232,2]
[398584579,1765857058279,-305.8,0.00011232,2]
[398584580,1765857058288,-5203.28,0.00011232,2]
[398584581,1765857058297,-618.81234223,0.00011232,2]
[398584582,1765857058307,-2367.41,0.00011232,2]
[398584583,1765857058316,-3863.02,0.00011232,2]
[398584584,1765857058325,-500.0,0.00011232,2]
[398584585,1765857058334,-2306.5,0.00011232,2]
[398584586,1765857058344,-5137.41,0.00011232,2]
[398584587,1765857058353,-500.0,0.00011232,2]
[398584588,1765857058362,-500.0,0.00011232,2]
[398584589,1765857058371,-674.15,0.00011232,2]
[398584590,1765857058380,-500.0,0.00011232,2]
[398584591,1765857058390,-560.29,0.00011232,2]
[398584592,1765857058399,-500.0,0.00011232,2]
[398584593,1765857058408,-2457.45,0.00011232,2]
[398584594,1765857058417,-1620.3,0.00011232,2]
[398584595,1765857058428,-935.88,0.00011232,2]
[398584596,1765857058437,-2175.69,0.00011232,2]
[398584597,1765857058446,-500.0,0.00011232,2]
[398584598,1765857058456,-500.0,0.00011232,2]
[398584599,1765857058465,-831.4,0.00011232,2]
[398584600,1765857058475,-500.0,0.00011232,2]
[398584601,1765857058484,-537.44,0.00011232,2]
[398584602,1765857058493,-500.0,0.00011232,2]
[398584603,1765857058504,-500.0,0.00011232,2]
[398584604,1765857058513,-500.0,0.00011232,2]
[398584605,1765857058523,-500.0,0.00011232,2]
[398584606,1765857058533,-500.0,0.00011232,2]
[398584607,1765857058542,-500.0,0.00011232,2]
[398584608,1765857058552,-1150.49,0.00011232,2]
[398584609,1765857058562,-1109.49,0.00011232,2]
[398584610,1765857058571,-643.61,0.00011232,2]
[398584611,1765857058581,-1846.1,0.00011232,2]
[398584612,1765857058590,-500.0,0.00011232,2]
[398584613,1765857058599,-500.0,0.00011232,2]
[398584614,1765857058609,-285.37700118,0.0001124,2]
[398584615,1765857058619,-2431.6752859,0.00011264,2]
[398584616,1765857058628,-302.51060032,0.00011356,3]
[398584617,1765857058637,-214.0,0.00011369,2]
[398584618,1765857058647,-325.81899906,0.00011404,2]
[398584619,1765857058657,-155.4875584,0.00011441,2]
[398584620,1765857058667,-614.0,0.00011489,2]
[398584621,1765857058676,-3739.48582071,0.00011491,2]
[398584622,1765857058686,-595.37131296,0.00011499,2]
[398584623,1765857058695,-160.0,0.000115,2]
[398584624,1765857058704,-160.0,0.000115,2]
[398584625,1765857058713,-7252.9007222,0.00011506,2]
[398584626,1765857058722,-3839.6,0.00011506,2]
[398584627,1765857058731,-500.0,0.00011506,2]
[398584628,1765857058740,-500.0,0.00011506,2]
[398584629,1765857058750,-500.0,0.00011506,2]
[398584630,1765857058760,-500.0,0.00011506,2]
[398584631,1765857058769,-500.0,0.00011506,2]
[398584632,1765857058778,-500.0,0.00011506,2]
[398584633,1765857058787,-500.0,0.00011506,2]
[398584634,1765857058797,-500.0,0.00011506,2]
[398584635,1765857058806,-500.0,0.00011506,2]
[398584636,1765857058816,-500.0,0.00011506,2]
[398584637,1765857058825,-500.0,0.00011506,2]
[398584638,1765857058834,-522.94705494,0.00011506,2]
[398584639,1765857058845,-500.0,0.00011506,2]
[398584640,1765857058854,-500.0,0.00011506,2]
[398584641,1765857058863,-500.0,0.00011506,2]
[398584642,1765857058872,-500.0,0.00011506,2]
[398584643,1765857058882,-500.0,0.00011506,2]
[398584644,1765857058891,-500.0,0.00011506,2]
[398584645,1765857058901,-571.14950137,0.00011506,2]
[398584646,1765857058910,-500.0,0.00011506,2]
[398584647,1765857058921,-500.0,0.00011506,2]
[398584648,1765857058930,-500.0,0.00011506,2]
[398584649,1765857058939,-500.0,0.00011506,2]
[398584650,1765857058949,-500.0,0.00011506,2]
[398584651,1765857058959,-609.81,0.00011506,2]
[398584652,1765857058968,-600.92,0.00011506,2]
[398584653,1765857058978,-500.26,0.00011506,2]
[398584654,1765857058987,-500.0,0.00011506,2]
[398584655,1765857058997,-500.0,0.00011506,2]
[398584656,1765857059007,-635.26,0.00011506,2]
[398584657,1765857059017,-500.0,0.00011506,2]
[398584658,1765857059027,-500.0,0.00011506,2]
[398584659,1765857059036,-2131.63,0.00011506,2]
[398584660,1765857059046,-500.0,0.00011506,2]
[398584661,1765857059056,-1239.05,0.00011506,2]
[398584662,1765857059066,-500.0,0.00011506,2]
[398584663,1765857059076,-500.0,0.00011506,2]
[398584664,1765857059085,-832.5,0.00011506,2]
[398584665,1765857059095,-500.0,0.00011506,2]
[398584666,1765857059104,-406.95680103,0.00011506,2]
[398584667,1765857059114,-500.0,0.00011506,2]
[398584668,1765857059125,-500.0,0.00011506,2]
[398584669,1765857059135,-500.0,0.00011506,2]
[398584670,1765857059145,-500.0,0.00011506,2]
[398584671,1765857059154,-500.0,0.00011506,2]
[398584672,1765857059164,-1281.42,0.00011506,2]
[398584673,1765857059174,-433.78592754,0.00011506,2]
[398584674,1765857059184,-706.65,0.00011506,2]
[398584675,1765857059193,-500.0,0.00011506,2]
[398584676,1765857059205,-500.0,0.00011506,2]
[398584677,1765857059215,-500.0,0.00011506,2]
[398584678,1765857059224,-500.0,0.00011506,2]
[398584679,1765857059234,-970.13,0.00011506,2]
[398584680,1765857059243,-500.0,0.00011506,2]
[398584681,1765857059253,-500.0,0.00011506,2]
[398584682,1765857059263,-905.09,0.00011506,2]
[398584683,1765857059273,-500.0,0.00011506,2]
[398584684,1765857059282,-500.0,0.00011506,2]
[398584685,1765857059291,-500.0,0.00011506,2]
[398584686,1765857059301,-500.0,0.00011506,2]
[398584687,1765857059310,-217.16160766,0.00011506,2]
[398584688,1765857059320,-500.0,0.00011506,2]
[398584689,1765857059329,-500.0,0.00011506,2]
[398584690,1765857059339,-500.0,0.00011506,2]
[398584691,1765857059348,-1438.77,0.00011506,2]
[398584692,1765857059357,-2194.500583,0.00011506,2]
[398584693,1765857059366,-505.73060013,0.00011506,2]
[398584694,1765857059375,-500.0,0.00011506,2]
[398584695,1765857059384,-500.0,0.00011506,2]
[398584696,1765857059394,-500.0,0.00011506,2]
[398584697,1765857059404,-867.63,0.00011506,2]
[398584698,1765857059414,-922.31,0.00011506,2]
[398584699,1765857059435,-500.81,0.00011506,2]
[398584700,1765857059445,-500.0,0.00011506,2]
[398584701,1765857059456,-500.0,0.00011506,2]
[398584702,1765857059466,-808.83,0.00011506,2]
[398584703,1765857059476,-500.0,0.00011506,2]
[398584704,1765857059486,-500.0,0.00011506,2]
[398584705,1765857059496,-772.63,0.00011506,2]
[398584706,1765857059507,-500.0,0.00011506,2]
[398584707,1765857059516,-500.0,0.00011506,2]
[398584708,1765857059526,-500.0,0.00011506,2]
[398584709,1765857059536,-500.0,0.00011506,2]
[398584710,1765857059547,-500.0,0.00011506,2]
[398584711,1765857059557,-724.68,0.00011506,2]
[398584712,1765857059567,-728.64,0.00011506,2]
[398584713,1765857059577,-1000.0,0.00011506,2]
[398584714,1765857059587,-503.34473193,0.00011506,2]
[398584715,1765857059597,-500.0,0.00011506,2]
[398584716,1765857059607,-788.39,0.00011506,2]
[398584717,1765857059617,-713.19,0.00011506,2]
[398584718,1765857059627,-711.19,0.00011506,2]
[398584719,1765857059638,-514.08341844,0.00011506,2]
[398584720,1765857059649,-447.51335068,0.00011506,2]
[398584721,1765857059659,-500.0,0.00011506,2]
[398584722,1765857059670,-1903.91,0.00011506,2]
[398584723,1765857059679,-500.0,0.00011506,2]
[398584724,1765857059690,-500.0,0.00011506,2]
[398584725,1765857059700,-1163.59,0.00011506,2]
[398584726,1765857059709,-541.86,0.00011506,2]
[398584727,1765857059719,-873.56,0.00011506,2]
[398584728,1765857059730,-500.0,0.00011506,2]
[398584729,1765857059741,-500.0,0.00011506,2]
[398584730,1765857059751,-500.0,0.00011506,2]
[398584731,1765857059761,-500.0,0.00011506,2]
[398584732,1765857059770,-500.0,0.00011506,2]
[398584733,1765857059780,-500.0,0.00011506,2]
[398584734,1765857059790,-623.95,0.00011506,2]
[398584735,1765857059800,-500.0,0.00011506,2]
[398584736,1765857059809,-500.0,0.00011506,2]
[398584737,1765857059819,-500.0,0.00011506,2]
[398584738,1765857059829,-500.0,0.00011506,2]
[398584739,1765857059839,-939.88,0.00011506,2]
[398584740,1765857059850,-500.0,0.00011506,2]
[398584741,1765857059860,-500.0,0.00011506,2]
[398584742,1765857059870,-514.0,0.00011506,2]
[398584743,1765857059880,-500.0,0.00011506,2]
[398584744,1765857059890,-500.0,0.00011506,2]
[398584745,1765857059900,-500.0,0.00011506,2]
[398584746,1765857059910,-500.0,0.00011506,2]
[398584747,1765857059921,-500.0,0.00011506,2]
[398584748,1765857059931,-500.0,0.00011506,2]
[398584749,1765857059942,-1404.96,0.00011506,2]
[398584750,1765857059953,-2624.19,0.00011506,2]
[398584751,1765857059965,-1165.8,0.00011506,2]
[398584752,1765857060191,-782.31,0.00011506,2]
[398584753,1765857060201,-500.0,0.00011506,2]
[398584754,1765857060212,-500.0,0.00011506,2]
[398584755,1765857060221,-500.0,0.00011506,2]
[398584756,1765857060230,-500.0,0.00011506,2]
[398584757,1765857060239,-500.0,0.00011506,2]
[398584758,1765857060248,-500.0,0.00011506,2]
[398584759,1765857060257,-500.0,0.00011506,2]
[398584760,1765857060266,-500.0,0.00011506,2]
[398584761,1765857060275,-500.0,0.00011506,2]
[398584762,1765857060284,-500.0,0.00011506,2]
[398584763,1765857060293,-500.0,0.00011506,2]
[398584764,1765857060302,-500.0,0.00011506,2]
[398584765,1765857060312,-500.0,0.00011506,2]
[398584766,1765857060321,-500.0,0.00011506,2]
[398584767,1765857060332,-2047.92,0.00011506,2]
[398584768,1765857060341,-500.0,0.00011506,2]
[398584769,1765857060350,-1419.58,0.00011506,2]
[398584770,1765857060359,-500.0,0.00011506,2]
[398584771,1765857060368,-500.0,0.00011506,2]
[398584772,1765857060377,-2858.67,0.00011506,2]
[398584773,1765857060387,-915.74,0.00011506,2]
[398584774,1765857060396,-500.0,0.00011506,2]
[398584775,1765857060406,-561.34,0.00011506,2]
[398584776,1765857060415,-862.14,0.00011506,2]
[398584777,1765857060423,-500.0,0.00011506,2]